{"text_format":"3","workbook":"xlsx","n_sheets":3,"sheets":["Stories","Submissions","Publications"],"not_rendered":{"images":1,"defined_names":2},"read":"whole","date_system":"1900"}

{"sheet":"Stories","index":0,"n_rows":10,"n_cols":7,"rows_kept":10}
[{"$nulls":6}," "]
[]
[]
[null,"Title","Status","Word Count","Story Type","Summary"]
[null,"Call by Nightfall","Complete",{"v":5710,"d":"5,710"},"Short story","Mild suspense fiction about a detective in secret."]
[null,"The Blue Wallpaper","Complete",{"v":4525,"d":"4,525"},"Short story","Inspirational house design story."]
[null,"Love After Love","Complete",438,"Blog post","A second chance love story."]
[null,"The Most Dangerous Suit","In Progress",550,"Promotion","Promotional piece for a shirt designer."]
[null,"The Legendary Mission","Complete",520,"Blog post","Quick story on a space mission."]
[null,"Legacy Quarter","Complete",290,"Blog post","Sports article on finals match."]

{"sheet":"Submissions","index":1,"n_rows":11,"n_cols":8,"rows_kept":11}
[{"$nulls":7}," "]
[]
[]
[null,"Date \nSubmitted","Story title","Publication name","Status","Date \nPublished","Payment \nReceived"]
[null,{"$f":"TODAY()-21","v":"2019-10-27"},"Call by Nightfall","Young at Heart Magazine","Declined"]
[null,{"$f":"TODAY()-9","v":"2019-11-08"},"The Blue Wallpaper","Young at Heart Magazine","Accepted",{"$f":"TODAY()-4","v":"2019-11-13"},{"v":300,"d":"£300.00"}]
[null,{"$f":"TODAY()-9","v":"2019-11-08"},"The Blue Wallpaper","Digital Grounds","Accepted",{"$f":"TODAY()-2","v":"2019-11-15"},{"v":350,"d":"£350.00"}]
[null,{"$f":"TODAY()-7","v":"2019-11-10"},"Love After Love","Get This!","Submitted"]
[null,{"$f":"TODAY()-6","v":"2019-11-11"},"The Legendary Mission","Digital Grounds","Accepted",{"$f":"TODAY()-4","v":"2019-11-13"},{"v":150,"d":"£150.00"}]
[null,{"$f":"TODAY()-6","v":"2019-11-11"},"Legacy Quarter","Get This!","Accepted",{"$f":"TODAY()-3","v":"2019-11-14"},{"v":100,"d":"£100.00"}]
[null,{"$f":"TODAY()-6","v":"2019-11-11"},"Legacy Quarter","Digital Grounds","Submitted"]

{"sheet":"Publications","index":2,"n_rows":7,"n_cols":8,"rows_kept":7}
[{"$nulls":7}," "]
[]
[]
[null,"Name","Type","Deadlines","Total \nSubmissions","Total\nAccepted","Total \nEarnings"]
[null,"Digital Grounds","Other","Two weeks after request",{"$f":"COUNTIF(Table_Submissions[Publication name],Table_Publications[Name])","v":3},{"$f":"COUNTIFS(Table_Submissions[Publication name],Table_Publications[Name],Table_Submissions[Status],\"Accepted\")","v":2},{"$f":"SUMIF(Table_Submissions[Publication name],Table_Publications[Name],Table_Submissions[Payment \nReceived])","v":{"v":500,"d":"£500.00"}}]
[null,"Young at Heart Magazine","SFWA","Every 3rd of the month",{"$f":"COUNTIF(Table_Submissions[Publication name],Table_Publications[Name])","v":2},{"$f":"COUNTIFS(Table_Submissions[Publication name],Table_Publications[Name],Table_Submissions[Status],\"Accepted\")","v":1},{"$f":"SUMIF(Table_Submissions[Publication name],Table_Publications[Name],Table_Submissions[Payment \nReceived])","v":{"v":300,"d":"£300.00"}}]
[null,"Get This!","SFWA","Every Mondays",{"$f":"COUNTIF(Table_Submissions[Publication name],Table_Publications[Name])","v":2},{"$f":"COUNTIFS(Table_Submissions[Publication name],Table_Publications[Name],Table_Submissions[Status],\"Accepted\")","v":1},{"$f":"SUMIF(Table_Submissions[Publication name],Table_Publications[Name],Table_Submissions[Payment \nReceived])","v":{"v":100,"d":"£100.00"}}]